[Event "December 19 Early 2023"]
[Site "https://www.chess.com"]
[Date "2023.12.19"]
[Round "2"]
[White "Trost, Edvin"]
[Black "Baskakov, Egor"]
[Result "0-1"]
[Board "35"]
[TimeControl "180+1"]
[WhiteFideId "1729519"]
[BlackFideId "24197866"]
[WhiteElo "2385"]
[BlackElo "2225"]
[WhiteTeam "SWE"]
[BlackTeam "RUS"]
[WhiteClock "0:00:01"]
[BlackClock "0:00:22"]

1. d4 {[%clk 0:02:59]}  Nf6 {[%clk 0:02:59]} 2. Nf3 {[%clk 0:02:53]}  e6 {[%clk 0:03:00]} 3. Bf4 {[%clk 0:02:52]}  d5 {[%clk 0:03:00]} 4. Nbd2 {[%clk 0:02:50]}  Ne4 {[%clk 0:02:59]} 5. e3 {[%clk 0:02:48]}  Bd6 {[%clk 0:02:57]} 6. Bxd6 {[%clk 0:02:42]}  cxd6 {[%clk 0:02:57]} 7. Bd3 {[%clk 0:02:41]}  f5 {[%clk 0:02:56]} 8. O-O {[%clk 0:02:40]}  O-O {[%clk 0:02:56]} 9. c4 {[%clk 0:02:41]}  Nxd2 {[%clk 0:02:55]} 10. Nxd2 {[%clk 0:02:39]}  dxc4 {[%clk 0:02:56]} 11. Nxc4 {[%clk 0:02:37]}  Nc6 {[%clk 0:02:55]} 12. Rc1 {[%clk 0:02:35]}  f4 {[%clk 0:02:46]} 13. Qh5 {[%clk 0:02:32]}  g6 {[%clk 0:02:46]} 14. Qh6 {[%clk 0:02:10]}  f3 {[%clk 0:02:38]} 15. g3 {[%clk 0:01:51]}  Qe7 {[%clk 0:02:36]} 16. Rc3 {[%clk 0:01:50]}  Bd7 {[%clk 0:02:32]} 17. Rfc1 {[%clk 0:01:50]}  d5 {[%clk 0:02:16]} 18. Nd2 {[%clk 0:01:32]}  e5 {[%clk 0:02:11]} 19. dxe5 {[%clk 0:01:29]}  Nxe5 {[%clk 0:02:11]} 20. Bf1 {[%clk 0:01:16]}  Ng4 {[%clk 0:01:37]} 21. Qh4 {[%clk 0:01:16]}  g5 {[%clk 0:01:27]} 22. Qh5 {[%clk 0:01:15]}  Qg7 {[%clk 0:01:25]} 23. Rc7 {[%clk 0:01:13]}  Nf6 {[%clk 0:01:17]} 24. Qxf3 {[%clk 0:01:06]}  Ne4 {[%clk 0:01:17]} 25. Qd1 {[%clk 0:00:51]}  Nxf2 {[%clk 0:01:08]} 26. Qb3 {[%clk 0:00:51]}  Rf5 {[%clk 0:00:51]} 27. Qxb7 {[%clk 0:00:44]}  Rd8 {[%clk 0:00:52]} 28. Bg2 {[%clk 0:00:20]}  Qe7 {[%clk 0:00:51]} 29. Nf1 {[%clk 0:00:18]}  Ng4 {[%clk 0:00:38]} 30. Bxd5+ {[%clk 0:00:17]}  Kh8 {[%clk 0:00:38]} 31. Bc6 {[%clk 0:00:06]}  Rxf1+ {[%clk 0:00:37]} 32. Rxf1 {[%clk 0:00:05]}  Qxe3+ {[%clk 0:00:37]} 33. Kh1 {[%clk 0:00:02]}  Nf2+ {[%clk 0:00:30]} 34. Kg2 {[%clk 0:00:01]}  Bh3+ {[%clk 0:00:28]} 35. Kg1 {[%clk 0:00:01]}  Ne4+ {[%clk 0:00:21]} 36. Kh1 {[%clk 0:00:02]}  Qf3+ {[%clk 0:00:21]} 37. Rxf3 {[%clk 0:00:01]}  Rd1+ {[%clk 0:00:22]} 38. Rf1 {[%clk 0:00:01]}  Rxf1# {[%clk 0:00:22]} 0-1

[Event "December 19 Early 2023"]
[Site "https://www.chess.com"]
[Date "2023.12.19"]
[Round "2"]
[White "Rasulov, Vugar"]
[Black "Novoselov, Roman"]
[Result "1-0"]
[Board "38"]
[TimeControl "180+1"]
[WhiteFideId "13402390"]
[BlackFideId "4135067"]
[WhiteElo "2517"]
[BlackElo "2250"]
[WhiteTeam "AZE"]
[BlackTeam "RUS"]
[WhiteClock "0:01:38"]
[BlackClock "0:00:10"]

1. d4 {[%clk 0:03:00]}  d5 {[%clk 0:02:59]} 2. c4 {[%clk 0:03:01]}  e6 {[%clk 0:02:59]} 3. Nc3 {[%clk 0:03:01]}  Nf6 {[%clk 0:02:59]} 4. Bg5 {[%clk 0:03:00]}  Be7 {[%clk 0:02:59]} 5. Nf3 {[%clk 0:02:59]}  Nbd7 {[%clk 0:02:59]} 6. e3 {[%clk 0:02:59]}  O-O {[%clk 0:02:58]} 7. Rc1 {[%clk 0:02:57]}  dxc4 {[%clk 0:02:48]} 8. Bxc4 {[%clk 0:02:57]}  a6 {[%clk 0:02:49]} 9. e4 {[%clk 0:02:42]}  b5 {[%clk 0:02:42]} 10. Bd3 {[%clk 0:02:41]}  c5 {[%clk 0:02:41]} 11. e5 {[%clk 0:02:38]}  Nd5 {[%clk 0:02:31]} 12. Bxe7 {[%clk 0:02:28]}  Qxe7 {[%clk 0:02:28]} 13. Nxd5 {[%clk 0:02:23]}  exd5 {[%clk 0:02:27]} 14. O-O {[%clk 0:02:23]}  Bb7 {[%clk 0:02:11]} 15. Re1 {[%clk 0:02:18]}  Rac8 {[%clk 0:02:08]} 16. Bf5 {[%clk 0:02:17]}  cxd4 {[%clk 0:01:50]} 17. e6 {[%clk 0:02:02]}  fxe6 {[%clk 0:00:44]} 18. Bxe6+ {[%clk 0:02:03]}  Kh8 {[%clk 0:00:43]} 19. Bxd5 {[%clk 0:01:59]}  Qxe1+ {[%clk 0:00:20]} 20. Qxe1 {[%clk 0:02:00]}  Bxd5 {[%clk 0:00:21]} 21. Nxd4 {[%clk 0:01:52]}  Nf6 {[%clk 0:00:16]} 22. b3 {[%clk 0:01:42]}  Rce8 {[%clk 0:00:12]} 23. Qb4 {[%clk 0:01:39]}  Re4 {[%clk 0:00:10]} 24. Qxf8+ {[%clk 0:01:38]} 1-0

[Event "December 19 Early 2023"]
[Site "https://www.chess.com"]
[Date "2023.12.19"]
[Round "2"]
[White "Taboas Rodriguez, Daniel"]
[Black "Jones, Gawain C B"]
[Result "1-0"]
[Board "39"]
[TimeControl "180+1"]
[WhiteFideId "2208466"]
[BlackFideId "409561"]
[WhiteElo "2365"]
[BlackElo "2645"]
[WhiteTeam "ESP"]
[BlackTeam "ENG"]
[WhiteClock "0:00:17"]
[BlackClock "0:00:04"]

1. d4 {[%clk 0:03:00]}  d5 {[%clk 0:03:00]} 2. c4 {[%clk 0:02:59]}  e6 {[%clk 0:03:00]} 3. Nc3 {[%clk 0:02:59]}  a6 {[%clk 0:03:01]} 4. e4 {[%clk 0:02:55]}  dxe4 {[%clk 0:03:00]} 5. Nxe4 {[%clk 0:02:56]}  Nf6 {[%clk 0:02:59]} 6. Nxf6+ {[%clk 0:02:56]}  Qxf6 {[%clk 0:02:59]} 7. Nf3 {[%clk 0:02:57]}  b6 {[%clk 0:02:52]} 8. Bd3 {[%clk 0:02:49]}  Bb4+ {[%clk 0:02:52]} 9. Bd2 {[%clk 0:02:49]}  Bxd2+ {[%clk 0:02:48]} 10. Qxd2 {[%clk 0:02:50]}  Bb7 {[%clk 0:02:49]} 11. Qe3 {[%clk 0:02:49]}  Bxf3 {[%clk 0:02:46]} 12. gxf3 {[%clk 0:02:49]}  O-O {[%clk 0:02:44]} 13. Be4 {[%clk 0:02:49]}  Ra7 {[%clk 0:02:42]} 14. O-O-O {[%clk 0:02:49]}  Nd7 {[%clk 0:02:32]} 15. f4 {[%clk 0:02:45]}  c5 {[%clk 0:02:28]} 16. d5 {[%clk 0:02:43]}  b5 {[%clk 0:02:19]} 17. d6 {[%clk 0:02:04]}  bxc4 {[%clk 0:02:04]} 18. Bc6 {[%clk 0:02:04]}  Rb8 {[%clk 0:01:59]} 19. Rd2 {[%clk 0:02:02]}  c3 {[%clk 0:01:42]} 20. bxc3 {[%clk 0:01:43]}  h6 {[%clk 0:01:31]} 21. Rb2 {[%clk 0:01:37]}  a5 {[%clk 0:00:23]} 22. Rd1 {[%clk 0:01:25]}  Rc8 {[%clk 0:00:17]} 23. Rb7 {[%clk 0:01:15]}  Rxb7 {[%clk 0:00:14]} 24. Bxb7 {[%clk 0:01:16]}  Rd8 {[%clk 0:00:14]} 25. Bc6 {[%clk 0:01:15]}  Qf5 {[%clk 0:00:12]} 26. f3 {[%clk 0:00:51]}  g6 {[%clk 0:00:09]} 27. Qe4 {[%clk 0:00:51]}  Qf6 {[%clk 0:00:09]} 28. Kc2 {[%clk 0:00:49]}  Nb8 {[%clk 0:00:08]} 29. Bb5 {[%clk 0:00:42]}  Qh4 {[%clk 0:00:09]} 30. Rd2 {[%clk 0:00:42]}  Nd7 {[%clk 0:00:09]} 31. Bxd7 {[%clk 0:00:36]}  Rxd7 {[%clk 0:00:09]} 32. Qc6 {[%clk 0:00:37]}  Rd8 {[%clk 0:00:09]} 33. Qc7 {[%clk 0:00:35]}  Kg7 {[%clk 0:00:08]} 34. d7 {[%clk 0:00:35]}  Qe7 {[%clk 0:00:08]} 35. a4 {[%clk 0:00:33]}  g5 {[%clk 0:00:08]} 36. fxg5 {[%clk 0:00:29]}  hxg5 {[%clk 0:00:09]} 37. Kb3 {[%clk 0:00:22]}  Kg6 {[%clk 0:00:09]} 38. Kc4 {[%clk 0:00:22]}  f5 {[%clk 0:00:09]} 39. Rd6 {[%clk 0:00:22]}  Kf7 {[%clk 0:00:08]} 40. Kxc5 {[%clk 0:00:20]}  Qf6 {[%clk 0:00:09]} 41. Kc4 {[%clk 0:00:18]}  g4 {[%clk 0:00:09]} 42. fxg4 {[%clk 0:00:18]}  f4 {[%clk 0:00:09]} 43. Rd2 {[%clk 0:00:15]}  e5 {[%clk 0:00:09]} 44. Qd6 {[%clk 0:00:15]}  Qe6+ {[%clk 0:00:08]} 45. Kc5 {[%clk 0:00:13]}  Qb3 {[%clk 0:00:05]} 46. Qd5+ {[%clk 0:00:13]}  Qxd5+ {[%clk 0:00:05]} 47. Rxd5 {[%clk 0:00:13]}  Ke6 {[%clk 0:00:05]} 48. Kc6 {[%clk 0:00:12]}  f3 {[%clk 0:00:05]} 49. Rd6+ {[%clk 0:00:12]}  Ke7 {[%clk 0:00:05]} 50. Rd3 {[%clk 0:00:12]}  Rf8 {[%clk 0:00:03]} 51. Kc7 {[%clk 0:00:10]}  e4 {[%clk 0:00:03]} 52. Re3 {[%clk 0:00:10]}  f2 {[%clk 0:00:03]} 53. Rxe4+ {[%clk 0:00:11]}  Kf6 {[%clk 0:00:03]} 54. Rf4+ {[%clk 0:00:11]}  Kg7 {[%clk 0:00:03]} 55. Rxf2 {[%clk 0:00:12]}  Rxf2 {[%clk 0:00:02]} 56. d8=Q {[%clk 0:00:12]}  Rf7+ {[%clk 0:00:03]} 57. Kc6 {[%clk 0:00:12]}  Rf6+ {[%clk 0:00:03]} 58. Kc5 {[%clk 0:00:12]}  Rf7 {[%clk 0:00:04]} 59. Qd4+ {[%clk 0:00:12]}  Kg8 {[%clk 0:00:04]} 60. Kb5 {[%clk 0:00:13]}  Kh7 {[%clk 0:00:03]} 61. Kxa5 {[%clk 0:00:13]}  Rg7 {[%clk 0:00:01]} 62. Kb4 {[%clk 0:00:13]}  Rf7 {[%clk 0:00:02]} 63. a5 {[%clk 0:00:14]}  Rb7+ {[%clk 0:00:02]} 64. Ka4 {[%clk 0:00:14]}  Rf7 {[%clk 0:00:03]} 65. Qe4+ {[%clk 0:00:14]}  Kh8 {[%clk 0:00:03]} 66. a6 {[%clk 0:00:15]}  Rf1 {[%clk 0:00:03]} 67. Qe5+ {[%clk 0:00:14]}  Kh7 {[%clk 0:00:03]} 68. c4 {[%clk 0:00:14]}  Rf7 {[%clk 0:00:02]} 69. Qf5+ {[%clk 0:00:13]}  Kh8 {[%clk 0:00:03]} 70. Kb5 {[%clk 0:00:12]}  Re7 {[%clk 0:00:02]} 71. Qf6+ {[%clk 0:00:12]}  Rg7 {[%clk 0:00:02]} 72. a7 {[%clk 0:00:11]}  Kh7 {[%clk 0:00:02]} 73. Qxg7+ {[%clk 0:00:12]}  Kxg7 {[%clk 0:00:02]} 74. a8=Q {[%clk 0:00:13]}  Kg6 {[%clk 0:00:03]} 75. Qc6+ {[%clk 0:00:13]}  Kg5 {[%clk 0:00:04]} 76. c5 {[%clk 0:00:14]}  Kh4 {[%clk 0:00:04]} 77. Qd6 {[%clk 0:00:14]}  Kh3 {[%clk 0:00:05]} 78. c6 {[%clk 0:00:15]}  Kg2 {[%clk 0:00:05]} 79. c7 {[%clk 0:00:16]}  Kh1 {[%clk 0:00:04]} 80. c8=Q {[%clk 0:00:17]} 1-0

[Event "December 19 Early 2023"]
[Site "https://www.chess.com"]
[Date "2023.12.19"]
[Round "2"]
[White "Steinberg, Nitzan"]
[Black "Souleidis, Georgios"]
[Result "1-0"]
[Board "40"]
[TimeControl "180+1"]
[WhiteFideId "2801795"]
[BlackFideId "4206827"]
[WhiteElo "2486"]
[BlackElo "2401"]
[WhiteTeam "ISR"]
[BlackTeam "GRE"]
[WhiteClock "0:00:32"]
[BlackClock "0:00:00"]

1. e4 {[%clk 0:03:00]}  c5 {[%clk 0:03:00]} 2. Nf3 {[%clk 0:03:00]}  e6 {[%clk 0:03:00]} 3. d4 {[%clk 0:03:01]}  cxd4 {[%clk 0:03:01]} 4. Nxd4 {[%clk 0:03:01]}  Nf6 {[%clk 0:03:02]} 5. Nc3 {[%clk 0:03:01]}  Nc6 {[%clk 0:03:02]} 6. a3 {[%clk 0:02:58]}  Be7 {[%clk 0:03:02]} 7. Be2 {[%clk 0:02:55]}  d6 {[%clk 0:03:01]} 8. Be3 {[%clk 0:02:54]}  O-O {[%clk 0:03:02]} 9. O-O {[%clk 0:02:55]}  a6 {[%clk 0:03:02]} 10. f4 {[%clk 0:02:54]}  Qc7 {[%clk 0:03:02]} 11. Qe1 {[%clk 0:02:54]}  Nxd4 {[%clk 0:02:54]} 12. Bxd4 {[%clk 0:02:53]}  e5 {[%clk 0:02:55]} 13. fxe5 {[%clk 0:02:43]}  dxe5 {[%clk 0:02:55]} 14. Qg3 {[%clk 0:02:44]}  Bc5 {[%clk 0:02:54]} 15. Bxc5 {[%clk 0:02:44]}  Qxc5+ {[%clk 0:02:55]} 16. Kh1 {[%clk 0:02:45]}  Kh8 {[%clk 0:02:12]} 17. Qh4 {[%clk 0:02:30]}  Qe7 {[%clk 0:01:59]} 18. Bd3 {[%clk 0:02:19]}  Be6 {[%clk 0:01:57]} 19. Qg5 {[%clk 0:02:13]}  Bd7 {[%clk 0:01:41]} 20. Qe3 {[%clk 0:01:23]}  Bc6 {[%clk 0:01:38]} 21. Rf5 {[%clk 0:01:21]}  Nd7 {[%clk 0:01:32]} 22. Raf1 {[%clk 0:01:19]}  f6 {[%clk 0:01:30]} 23. Qh3 {[%clk 0:01:16]}  g6 {[%clk 0:01:19]} 24. R5f2 {[%clk 0:01:13]}  Nc5 {[%clk 0:01:11]} 25. Qh4 {[%clk 0:01:10]}  Kg7 {[%clk 0:01:03]} 26. Rf3 {[%clk 0:01:09]}  Ne6 {[%clk 0:00:47]} 27. Bc4 {[%clk 0:01:01]}  Ng5 {[%clk 0:00:35]} 28. R3f2 {[%clk 0:01:00]}  Rad8 {[%clk 0:00:25]} 29. Nd5 {[%clk 0:00:54]}  Bxd5 {[%clk 0:00:24]} 30. Bxd5 {[%clk 0:00:55]}  b5 {[%clk 0:00:20]} 31. c3 {[%clk 0:00:51]}  Rd7 {[%clk 0:00:17]} 32. Qg4 {[%clk 0:00:42]}  f5 {[%clk 0:00:00]} 33. exf5 {[%clk 0:00:32]} 1-0

[Event "December 19 Early 2023"]
[Site "https://www.chess.com"]
[Date "2023.12.19"]
[Round "2"]
[White "Kavyev, Ruslan"]
[Black "Kovalev, Vladislav"]
[Result "1/2-1/2"]
[Board "41"]
[TimeControl "180+1"]
[WhiteFideId "34110981"]
[BlackFideId "13504398"]
[WhiteElo "2336"]
[BlackElo "2539"]
[WhiteTeam "RUS"]
[BlackTeam "FID"]
[WhiteClock "0:00:04"]
[BlackClock "0:00:06"]

1. d4 {[%clk 0:02:54]}  Nf6 {[%clk 0:03:00]} 2. c4 {[%clk 0:02:53]}  e6 {[%clk 0:03:00]} 3. g3 {[%clk 0:02:53]}  d5 {[%clk 0:02:59]} 4. Bg2 {[%clk 0:02:52]}  dxc4 {[%clk 0:02:59]} 5. Nf3 {[%clk 0:02:52]}  Bb4+ {[%clk 0:02:59]} 6. Nbd2 {[%clk 0:02:51]}  O-O {[%clk 0:02:56]} 7. Qc2 {[%clk 0:02:49]}  b5 {[%clk 0:02:48]} 8. a4 {[%clk 0:02:49]}  Bb7 {[%clk 0:01:51]} 9. axb5 {[%clk 0:02:48]}  a6 {[%clk 0:01:46]} 10. bxa6 {[%clk 0:02:43]}  Rxa6 {[%clk 0:01:39]} 11. Rxa6 {[%clk 0:02:42]}  Bxa6 {[%clk 0:01:40]} 12. O-O {[%clk 0:02:41]}  c5 {[%clk 0:01:39]} 13. dxc5 {[%clk 0:02:40]}  Qa5 {[%clk 0:01:34]} 14. Nxc4 {[%clk 0:02:38]}  Qxc5 {[%clk 0:01:33]} 15. b3 {[%clk 0:02:38]}  Nbd7 {[%clk 0:01:27]} 16. Be3 {[%clk 0:02:38]}  Qc7 {[%clk 0:01:27]} 17. Bf4 {[%clk 0:02:36]}  Qa7 {[%clk 0:01:20]} 18. Ra1 {[%clk 0:02:34]}  Bc5 {[%clk 0:01:10]} 19. e3 {[%clk 0:02:27]}  Nd5 {[%clk 0:00:55]} 20. Nfe5 {[%clk 0:02:22]}  Nxe5 {[%clk 0:00:52]} 21. Bxe5 {[%clk 0:02:19]}  Rc8 {[%clk 0:00:50]} 22. Qa2 {[%clk 0:02:13]}  Nb4 {[%clk 0:00:41]} 23. Qd2 {[%clk 0:01:41]}  Qe7 {[%clk 0:00:20]} 24. Bd6 {[%clk 0:01:08]}  Bxd6 {[%clk 0:00:20]} 25. Nxd6 {[%clk 0:01:09]}  Rb8 {[%clk 0:00:12]} 26. Be4 {[%clk 0:00:59]}  g6 {[%clk 0:00:10]} 27. Ra4 {[%clk 0:00:54]}  Rd8 {[%clk 0:00:08]} 28. Qxb4 {[%clk 0:00:45]}  Rxd6 {[%clk 0:00:08]} 29. Kg2 {[%clk 0:00:41]}  Qc7 {[%clk 0:00:05]} 30. Ra1 {[%clk 0:00:28]}  h5 {[%clk 0:00:05]} 31. h4 {[%clk 0:00:28]}  Rb6 {[%clk 0:00:04]} 32. Qd4 {[%clk 0:00:25]}  Bb7 {[%clk 0:00:05]} 33. b4 {[%clk 0:00:22]}  Rd6 {[%clk 0:00:02]} 34. Qe5 {[%clk 0:00:20]}  Rd7 {[%clk 0:00:02]} 35. Qxc7 {[%clk 0:00:19]}  Bxe4+ {[%clk 0:00:03]} 36. f3 {[%clk 0:00:19]}  Rxc7 {[%clk 0:00:03]} 37. fxe4 {[%clk 0:00:20]}  Rc2+ {[%clk 0:00:04]} 38. Kf3 {[%clk 0:00:20]}  Rb2 {[%clk 0:00:05]} 39. Ra8+ {[%clk 0:00:20]}  Kg7 {[%clk 0:00:05]} 40. Rb8 {[%clk 0:00:21]}  Kf6 {[%clk 0:00:03]} 41. Rb7 {[%clk 0:00:21]}  Kg7 {[%clk 0:00:03]} 42. e5 {[%clk 0:00:21]}  g5 {[%clk 0:00:02]} 43. hxg5 {[%clk 0:00:21]}  Kg6 {[%clk 0:00:03]} 44. Kf4 {[%clk 0:00:19]}  Rb1 {[%clk 0:00:01]} 45. b5 {[%clk 0:00:17]}  Rb4+ {[%clk 0:00:02]} 46. Kf3 {[%clk 0:00:16]}  Kxg5 {[%clk 0:00:01]} 47. Rxf7 {[%clk 0:00:06]}  Rxb5 {[%clk 0:00:01]} 48. Rg7+ {[%clk 0:00:05]}  Kf5 {[%clk 0:00:01]} 49. Rh7 {[%clk 0:00:05]}  Kg6 {[%clk 0:00:01]} 50. Re7 {[%clk 0:00:05]}  Rxe5 {[%clk 0:00:02]} 51. Kf4 {[%clk 0:00:04]}  Kf6 {[%clk 0:00:02]} 52. Rf7+ {[%clk 0:00:04]}  Kxf7 {[%clk 0:00:01]} 53. Kxe5 {[%clk 0:00:05]}  Ke7 {[%clk 0:00:02]} 54. e4 {[%clk 0:00:05]}  Kf7 {[%clk 0:00:02]} 55. Kf4 {[%clk 0:00:03]}  Kf6 {[%clk 0:00:02]} 56. Kf3 {[%clk 0:00:03]}  Kg5 {[%clk 0:00:02]} 57. Kf2 {[%clk 0:00:03]}  Kg4 {[%clk 0:00:02]} 58. Kg2 {[%clk 0:00:04]}  e5 {[%clk 0:00:02]} 59. Kf2 {[%clk 0:00:04]}  Kg5 {[%clk 0:00:01]} 60. Kf3 {[%clk 0:00:04]}  Kf6 {[%clk 0:00:01]} 61. g4 {[%clk 0:00:02]}  h4 {[%clk 0:00:02]} 62. Kg2 {[%clk 0:00:02]}  Kg6 {[%clk 0:00:03]} 63. Kh2 {[%clk 0:00:03]}  Kh6 {[%clk 0:00:03]} 64. Kg2 {[%clk 0:00:03]}  Kg6 {[%clk 0:00:04]} 65. Kh2 {[%clk 0:00:04]}  Kh6 {[%clk 0:00:05]} 66. Kg2 {[%clk 0:00:04]}  Kg6 {[%clk 0:00:06]} 1/2-1/2

[Event "December 19 Early 2023"]
[Site "https://www.chess.com"]
[Date "2023.12.19"]
[Round "2"]
[White "Zakhartsov, Vladimir"]
[Black "Spata, German"]
[Result "1-0"]
[Board "42"]
[TimeControl "180+1"]
[WhiteFideId "4145097"]
[BlackFideId "113026"]
[WhiteElo "2448"]
[BlackElo "2260"]
[WhiteTeam "RUS"]
[BlackTeam "ARG"]
[WhiteClock "0:00:04"]
[BlackClock "0:00:00"]

1. e4 {[%clk 0:02:52]}  c5 {[%clk 0:02:57]} 2. Nf3 {[%clk 0:02:52]}  a6 {[%clk 0:02:57]} 3. c3 {[%clk 0:02:51]}  d5 {[%clk 0:02:52]} 4. exd5 {[%clk 0:02:51]}  Qxd5 {[%clk 0:02:53]} 5. d4 {[%clk 0:02:52]}  e6 {[%clk 0:02:50]} 6. Be3 {[%clk 0:02:50]}  Nd7 {[%clk 0:02:49]} 7. c4 {[%clk 0:02:42]}  Qc6 {[%clk 0:02:49]} 8. Nc3 {[%clk 0:02:37]}  Ngf6 {[%clk 0:02:43]} 9. d5 {[%clk 0:02:19]}  exd5 {[%clk 0:02:40]} 10. cxd5 {[%clk 0:02:20]}  Qc7 {[%clk 0:02:35]} 11. Bd3 {[%clk 0:02:17]}  Bd6 {[%clk 0:02:31]} 12. O-O {[%clk 0:02:11]}  O-O {[%clk 0:02:28]} 13. h3 {[%clk 0:01:59]}  b5 {[%clk 0:02:20]} 14. Nh4 {[%clk 0:01:59]}  Ne5 {[%clk 0:02:13]} 15. Bc2 {[%clk 0:01:54]}  Nc4 {[%clk 0:02:03]} 16. Bc1 {[%clk 0:01:52]}  Bh2+ {[%clk 0:01:56]} 17. Kh1 {[%clk 0:01:52]}  Bf4 {[%clk 0:01:56]} 18. b3 {[%clk 0:01:37]}  Nb6 {[%clk 0:01:43]} 19. Bb2 {[%clk 0:01:25]}  Rd8 {[%clk 0:01:34]} 20. Qf3 {[%clk 0:01:25]}  Be5 {[%clk 0:01:20]} 21. Rae1 {[%clk 0:01:12]}  Bd4 {[%clk 0:01:01]} 22. Bc1 {[%clk 0:00:42]}  b4 {[%clk 0:00:38]} 23. Ne4 {[%clk 0:00:28]}  Nbxd5 {[%clk 0:00:32]} 24. Bg5 {[%clk 0:00:22]}  Be6 {[%clk 0:00:28]} 25. Nf5 {[%clk 0:00:20]}  Re8 {[%clk 0:00:07]} 26. Nxd4 {[%clk 0:00:13]}  cxd4 {[%clk 0:00:07]} 27. Nxf6+ {[%clk 0:00:13]}  Nxf6 {[%clk 0:00:08]} 28. Bxf6 {[%clk 0:00:13]}  Qxc2 {[%clk 0:00:07]} 29. Bxd4 {[%clk 0:00:11]}  Qg6 {[%clk 0:00:05]} 30. Re5 {[%clk 0:00:09]}  Rad8 {[%clk 0:00:05]} 31. Qe3 {[%clk 0:00:09]}  Qc2 {[%clk 0:00:04]} 32. Re1 {[%clk 0:00:08]}  Qxa2 {[%clk 0:00:04]} 33. Rg5 {[%clk 0:00:07]}  g6 {[%clk 0:00:04]} 34. Qe5 {[%clk 0:00:07]}  Rxd4 {[%clk 0:00:02]} 35. Qxd4 {[%clk 0:00:07]}  Qxb3 {[%clk 0:00:03]} 36. Ra5 {[%clk 0:00:07]}  Qc3 {[%clk 0:00:03]} 37. Qxc3 {[%clk 0:00:07]}  bxc3 {[%clk 0:00:04]} 38. Rc1 {[%clk 0:00:07]}  Rc8 {[%clk 0:00:03]} 39. Rxa6 {[%clk 0:00:07]}  Bf5 {[%clk 0:00:03]} 40. g4 {[%clk 0:00:05]}  Bd3 {[%clk 0:00:03]} 41. Ra3 {[%clk 0:00:04]}  Be4+ {[%clk 0:00:02]} 42. Kh2 {[%clk 0:00:04]}  c2 {[%clk 0:00:03]} 43. f3 {[%clk 0:00:04]}  Bd5 {[%clk 0:00:02]} 44. Kg3 {[%clk 0:00:04]}  Kg7 {[%clk 0:00:02]} 45. Rd3 {[%clk 0:00:04]}  Rc5 {[%clk 0:00:01]} 46. Kf2 {[%clk 0:00:03]}  Kf6 {[%clk 0:00:02]} 47. Ke3 {[%clk 0:00:03]}  Ke5 {[%clk 0:00:03]} 48. f4+ {[%clk 0:00:03]}  Kd6 {[%clk 0:00:03]} 49. Rd2 {[%clk 0:00:03]}  Ke6 {[%clk 0:00:03]} 50. Rcxc2 {[%clk 0:00:04]}  Rxc2 {[%clk 0:00:03]} 51. Rxc2 {[%clk 0:00:04]}  h5 {[%clk 0:00:04]} 52. Kd4 {[%clk 0:00:04]}  Bf3 {[%clk 0:00:03]} 53. g5 {[%clk 0:00:03]}  Kf5 {[%clk 0:00:02]} 54. Ke3 {[%clk 0:00:03]}  Bd5 {[%clk 0:00:02]} 55. Rc5 {[%clk 0:00:03]}  Ke6 {[%clk 0:00:02]} 56. h4 {[%clk 0:00:04]}  Kd6 {[%clk 0:00:02]} 57. Kd4 {[%clk 0:00:04]}  Bf3 {[%clk 0:00:02]} 58. Ra5 {[%clk 0:00:03]}  Ke6 {[%clk 0:00:03]} 59. f5+ {[%clk 0:00:03]}  gxf5 {[%clk 0:00:03]} 60. Re5+ {[%clk 0:00:03]}  Kd6 {[%clk 0:00:03]} 61. Rxf5 {[%clk 0:00:04]}  Bg4 {[%clk 0:00:00]} 62. Rxf7 {[%clk 0:00:04]} 1-0

[Event "December 19 Early 2023"]
[Site "https://www.chess.com"]
[Date "2023.12.19"]
[Round "2"]
[White "Andreev, Konstantin"]
[Black "Jumabayev, Rinat"]
[Result "0-1"]
[Board "45"]
[TimeControl "180+1"]
[WhiteFideId "24239305"]
[BlackFideId "13702661"]
[WhiteElo "2093"]
[BlackElo "2561"]
[WhiteTeam "ITA"]
[BlackTeam "KAZ"]
[WhiteClock "0:00:17"]
[BlackClock "0:00:06"]

1. e4 {[%clk 0:03:00]}  e6 {[%clk 0:02:56]} 2. d4 {[%clk 0:03:00]}  d5 {[%clk 0:02:56]} 3. Nc3 {[%clk 0:03:00]}  Nf6 {[%clk 0:02:57]} 4. e5 {[%clk 0:03:01]}  Nfd7 {[%clk 0:02:57]} 5. f4 {[%clk 0:03:02]}  c5 {[%clk 0:02:58]} 6. Nf3 {[%clk 0:03:02]}  Nc6 {[%clk 0:02:58]} 7. Be3 {[%clk 0:03:03]}  a6 {[%clk 0:02:59]} 8. Ne2 {[%clk 0:03:02]}  Qb6 {[%clk 0:02:54]} 9. Rb1 {[%clk 0:02:54]}  a5 {[%clk 0:02:44]} 10. c3 {[%clk 0:02:54]}  a4 {[%clk 0:02:44]} 11. a3 {[%clk 0:02:54]}  cxd4 {[%clk 0:02:34]} 12. cxd4 {[%clk 0:02:52]}  Qa5+ {[%clk 0:02:29]} 13. Bd2 {[%clk 0:02:49]}  Qa7 {[%clk 0:02:30]} 14. g4 {[%clk 0:02:48]}  h5 {[%clk 0:02:25]} 15. gxh5 {[%clk 0:02:46]}  b5 {[%clk 0:02:20]} 16. Be3 {[%clk 0:02:41]}  b4 {[%clk 0:02:16]} 17. axb4 {[%clk 0:02:39]}  Bxb4+ {[%clk 0:01:57]} 18. Kf2 {[%clk 0:02:39]}  Nb6 {[%clk 0:01:20]} 19. Ng3 {[%clk 0:02:38]}  Nc4 {[%clk 0:01:20]} 20. Bxc4 {[%clk 0:02:34]}  dxc4 {[%clk 0:01:20]} 21. Ne4 {[%clk 0:02:30]}  Qb7 {[%clk 0:01:07]} 22. Qc2 {[%clk 0:02:19]}  Ne7 {[%clk 0:01:06]} 23. Neg5 {[%clk 0:02:11]}  Qd5 {[%clk 0:01:04]} 24. Rhc1 {[%clk 0:02:08]}  Bb7 {[%clk 0:00:46]} 25. Qxc4 {[%clk 0:02:06]}  Qxc4 {[%clk 0:00:21]} 26. Rxc4 {[%clk 0:02:07]}  Nd5 {[%clk 0:00:21]} 27. Ra1 {[%clk 0:01:52]}  Rxh5 {[%clk 0:00:18]} 28. Ne4 {[%clk 0:01:22]}  Kd7 {[%clk 0:00:15]} 29. Nc5+ {[%clk 0:01:19]}  Bxc5 {[%clk 0:00:15]} 30. dxc5 {[%clk 0:01:08]}  Rh3 {[%clk 0:00:15]} 31. Nd4 {[%clk 0:00:46]}  Nxe3 {[%clk 0:00:12]} 32. c6+ {[%clk 0:00:46]}  Bxc6 {[%clk 0:00:12]} 33. Rxc6 {[%clk 0:00:46]}  Nf5 {[%clk 0:00:10]} 34. Rc4 {[%clk 0:00:41]}  Rxh2+ {[%clk 0:00:10]} 35. Kg1 {[%clk 0:00:39]}  Rah8 {[%clk 0:00:09]} 36. Raxa4 {[%clk 0:00:37]}  Rh1+ {[%clk 0:00:09]} 37. Kf2 {[%clk 0:00:36]}  R8h2+ {[%clk 0:00:08]} 38. Kf3 {[%clk 0:00:36]}  Rh3+ {[%clk 0:00:08]} 39. Kf2 {[%clk 0:00:33]}  R3h2+ {[%clk 0:00:08]} 40. Kf3 {[%clk 0:00:33]}  Rf1+ {[%clk 0:00:06]} 41. Kg4 {[%clk 0:00:19]}  Rg1+ {[%clk 0:00:05]} 42. Kf3 {[%clk 0:00:17]}  Rg3+ {[%clk 0:00:06]} 0-1